Cogmind - Beta 9.6 @@@ ROGUE MODE // 2020.07.24 @ 01:00:37 Player: dumbaq Result: Destroyed by G-34 Mercenary with Small Laser Performance ------------- Evolutions (0) 0 Regions Visited (1) 200 Robots Destroyed (4) 20 Value Destroyed (76) 76 Prototype IDs (0) 0 Alien Tech Used (0) 0 Bonus (0) 0 TOTAL SCORE: 296 Bonus ------- None Cogmind --------- Core Integrity 0/250 Matter 290/300 Energy 86/100 System Corruption 0% Temperature Cool (6) Movement Core (300) Ox5 Location -10/Materials Parts ------- > --- POWER (1) -------- (None) > --- PROPULSION (2) --- (None) > --- UTILITY (2) ------ Large Storage Unit Hacking Suite > --- WEAPON (2) ------- Small Laser > --- INVENTORY (10) --- Small Storage Unit Sensor Array Datajack Peak State ------------ > --- POWER ------------ Ion Engine > --- PROPULSION ------- Light Treads Light Treads > --- UTILITY ---------- Small Storage Unit Hacking Suite > --- WEAPON ----------- EM Pulse Gun Medium Laser > --- INVENTORY -------- Datajack [Rating: 9] Favorites ----------- Power Ion Engine Engine Ion Engine Propulsion Light Treads Treads Light Treads Utility Hacking Suite Storage Small Storage Unit Hackware Hacking Suite Weapon EM Pulse Gun Energy Gun EM Pulse Gun Special Melee Weapon Datajack Build | -11 -10 ------- Run | Scr Mat Slots Evolved . | . . Power . | . . Propulsion . | . . Utility . | . . Weapon . | . . Parts Attached 11 | 6 5 Power 1 | 1 . Engine 1 | 1 . Core . | . . Reactor . | . . Propulsion 2 | 2 . Treads 2 | 2 . Leg . | . . Wheel . | . . Hover . | . . Flight . | . . Utility 3 | 1 2 Device . | . . Storage 2 | 1 1 Processor . | . . Hackware 1 | . 1 Protection . | . . Artifact . | . . Weapon 5 | 2 3 Energy Gun 4 | 2 2 Energy Cannon . | . . Ballistic Gun . | . . Ballistic Cannon . | . . Launcher . | . . Special Weapon . | . . Impact Weapon . | . . Slashing Weapon . | . . Piercing Weapon . | . . Special Melee Weapon 1 | . 1 Unidentified Prototypes . | . . Parts Lost 5 | . 5 Power 1 | . 1 Propulsion 2 | . 2 Utility . | . . Weapon 2 | . 2 Highest Loss Streak 3 | . 3 Average Slot Usage (%) 85 | . 85 Engine 11 | . 11 Treads 25 | . 25 Storage 14 | . 14 Hackware 10 | . 10 Energy Gun 20 | . 20 Special Melee Weapon 2 | . 2 Naked Turns . | . . Heaviest Build 25 | 13 25 Greatest Support 40 | 40 40 Greatest Overweight (x) 5 | 1 5 Average Overweight (x) . | . . Largest Inventory Capacity 10 | 6 10 Average Capacity 7 | 5 8 Most Carried 4 | 4 4 Average Carried 1 | . 1 Final Capacity 10 | 6 10 Final Carried 3 | . 3 Class Distribution -------------------- 100% | Mutant Dominant Class ---------------- Mutant | -10/Materials Resources | -11 -10 ----------- Run | Scr Mat Matter Collected 284 | 203 81 Remotely . | . . Salvage Created 99 | . 99 Parts 11 | . 11 Haulers Intercepted . | . . Recyclers Shooed 1 | . 1 Parts Field Recycled . | . . Retrieved Matter . | . . Parts Self-Destructed . | . . Prevented . | . . Kills | -11 -10 ------- Run | Scr Mat Combat Hostiles Destroyed 2 | . 2 Guns 2 | . 2 Classes Destroyed 4 | . 4 Operator 1 | . 1 Watcher 1 | . 1 Swarmer 1 | . 1 Grunt 1 | . 1 Best Kill Streak 1 | . 1 Combat Bots Only 1 | . 1 Max Kills in Single Turn 1 | . 1 Gunslinging . | . . Exploded . | . . Melee . | . . Uniques/NPCs Destroyed . | . . Combat | -11 -10 -------- Run | Scr Mat Damage Taken 763 | . 763 Core 252 | . 252 Absorbed by Shields . | . . Core Remaining (%) 100 | 100 . Volleys Fired 20 | . 20 Largest 2 | . 2 Hottest 90 | . 90 Shots Fired 32 | . 32 Gun 32 | . 32 Cannon . | . . Launcher . | . . Special . | . . Kinetic . | . . Thermal 15 | . 15 Explosive . | . . Electromagnetic 17 | . 17 Robot Hit Streak 8 | . 8 Robot Miss Streak 1 | . 1 Penetration Max . | . . Secondary Targets . | . . Shots Hit Robots 24 | . 24 Core Hits 8 | . 8 Critical Hits . | . . Critical Kills . | . . Critical Parts Destroyed . | . . Melee Attacks 3 | . 3 Impact . | . . Slashing . | . . Piercing . | . . Sneak Attacks 1 | . 1 Combat Hostiles . | . . Follow-up Attacks . | . . Damage Inflicted 306 | . 306 Guns 301 | . 301 Cannons . | . . Explosions . | . . Melee . | . . Ramming 5 | . 5 Kinetic . | . . Thermal 111 | . 111 Explosive . | . . Electromagnetic 190 | . 190 Impact . | . . Slashing . | . . Piercing . | . . Highest Corruption . | . . Average Corruption . | . . Corruption Purged . | . . Overload Shots . | . . Overflow Damage . | . . Projectiles . | . . Explosions . | . . Melee . | . . Knockbacks . | . . Impact . | . . Kinetic . | . . Secondary . | . . Self-Inflicted Damage . | . . Shots . | . . Rammed 1 | . 1 Targets Rammed 1 | . 1 Kicked . | . . Crushed . | . . Highest Temperature 210 | . 210 Average Temperature 64 | . 64 Received Heat Transfer 180 | . 180 Siege Activations . | . . Robots Corrupted . | . . Combat Hostiles . | . . Parts Fried . | . . Impact Corruptions . | . . Robots Melted . | . . Combat Hostiles . | . . Parts Melted . | . . Heat Transferred 321 | . 321 Parts Sabotaged . | . . Parts Stolen . | . . Parts Stripped . | . . Power Chain Reactions . | . . Missiles Intercepted . | . . Alert | -11 -10 ------- Run | Scr Mat Peak Influence 50 | . 50 Average Influence 11 | . 13 Maximum Alert Level . | . . Low Security (%) 100 | 100 100 Level 1 . | . . Level 2 . | . . Level 3 . | . . Level 4 . | . . Level 5 . | . . High Security . | . . Max Security . | . . Squads Dispatched 1 | . 1 Investigation . | . . Extermination . | . . Reinforcement 1 | . 1 Assault . | . . Garrison . | . . Intercept . | . . Construction Impeded . | . . Haulers Reinforced . | . . Stealth | -11 -10 --------- Run | Scr Mat Distress Signals . | . . Communications Jammed . | . . Distress Signals . | . . Times Spotted 10 | . 10 Peak Tracking Total 5 | . 5 Tactical Retreats 1 | . 1 Traps | -11 -10 ------- Run | Scr Mat Traps Triggered . | . . Indirectly . | . . Trap Hack Attempts . | . . Triggered . | . . Disarmed . | . . Reprogrammed . | . . Reused . | . . Traps Extracted . | . . Installed . | . . Triggered . | . . Machines | -11 -10 ---------- Run | Scr Mat Machines Disabled . | . . Max in Single Turn . | . . Machines Sabotaged . | . . Garrisons Compromised . | . . Overloaded Fab Kills . | . . Fab Network Shutdowns . | . . Hacking | -11 -10 --------- Run | Scr Mat Machines Accessed 2 | . 2 Terminals 2 | . 2 Fabricators . | . . Repair Stations . | . . Recycling Units . | . . Scanalyzers . | . . Garrison Access . | . . Total Hacks 4 | . 4 Successful 3 | . 3 Failed 1 | . 1 Catastrophic . | . . Database Lockouts . | . . Manual . | . . Terminals 4 | . 4 Fabricators . | . . Repair Stations . | . . Recycling Units . | . . Scanalyzers . | . . Garrison Access . | . . Terminal Hacks 3 | . 3 Alert Level 1 | . 1 Unreport Threat 1 | . 1 Hauler Manifests 1 | . 1 Fabricator Hacks . | . . Repair Station Hacks . | . . Recycling Unit Hacks . | . . Scanalyzer . | . . Garrison Access Hacks . | . . Unauthorized Hacks . | . . Terminals . | . . Fabricators . | . . Repair Stations . | . . Recycling Units . | . . Scanalyzers . | . . Garrison Access . | . . Data Cores Recovered . | . . Used . | . . Hacking Detections 1 | . 1 Full Trace Events . | . . Feedback Events . | . . Feedback Blocked . | . . Robot Schematics Acquired . | . . Robots Built . | . . Matter . | . . Time . | . . Total Robot Build Rating . | . . Part Schematics Acquired . | . . Parts Built . | . . Matter . | . . Time . | . . Total Part Build Rating . | . . Parts Repaired . | . . Time . | . . Parts Recycled . | . . Recycled Matter . | . . Retrieved Matter . | . . Retrieved Components . | . . Parts Scanalyzed . | . . Part Schematics Acquired . | . . Parts Damaged . | . . Bothacking | -11 -10 ------------ Run | Scr Mat Used RIF Installer . | . . Robots Hacked 1 | . 1 Non-combat 1 | . 1 Combat . | . . Robot Hacks Applied 1 | . 1 parse_system 1 | . 1 Relay Couplers Released . | . . Robots Rewired . | . . Allies Hacked . | . . Hacks Repelled . | . . Allies | -11 -10 -------- Run | Scr Mat Total Allies . | . . Largest Group . | . . Highest-Rated Group . | . . Highest-Rated Ally . | . . Total Orders . | . . Ally Attacks . | . . Total Damage . | . . Kills . | . . Allies Corrupted . | . . Allies Melted . | . . Intel | -11 -10 ------- Run | Scr Mat Robot Analysis Total . | . . Derelict Logs Recovered . | . . Drone Launches . | . . Drone Recoveries . | . . Exploration | -11 -10 ------------- Run | Scr Mat Turns Passed 542 | 64 478 Spaces Moved 262 | 39 223 Core 24 | 13 11 Treads 238 | 26 212 Legs . | . . Wheels . | . . Hover . | . . Flight . | . . Fastest Speed 50 | 50 160 Average Speed 162 | 137 166 Slowest Speed 300 | 160 300 Overloaded Moves . | . . Propulsion Burnouts . | . . Robots Hopped . | . . Cave-ins Triggered . | . . Exploration Rate (%) 19 | 4 34 Regions Visited 1 Branch Regions . Pre-discovered Areas . | . . Known Exits Taken . | . . Unknown Exits Taken 1 | 1 . Scrap Searched . | . . Spaces Dug . | . . Terrain Destroyed . | . . Melee . | . . Projectile . | . . AOE . | . . Actions | -11 -10 --------- Run | Scr Mat Total 341 | 49 292 Wait 35 | . 35 Move 261 | 38 223 Hop . | . . Pick Up 10 | 5 5 Fast Attach 1 | 1 . Attach 7 | 5 2 Detach . | . . Swap 3 | . 3 Drop . | . . Fire 20 | . 20 Melee 3 | . 3 Ram . | . . Kick . | . . Crush 1 | . 1 Escape Stasis . | . . Rewire . | . . Trap . | . . Miscellaneous . | . . Route ------- -11/Scrapyard -10/Materials History --------- Turn | Location | Event 2 | -11/Scrapyard | Met Revision 17 4 | -11/Scrapyard | Discovered new exit (range 16) 65 | -11/Scrapyard | Entered Materials 321 | -10/Materials | Build established: Mutant 483 | -10/Materials | Lost 3 parts (1p2w) 507 | -10/Materials | Core integrity fell below 50% 529 | -10/Materials | Core integrity fell below 20% 543 | -10/Materials | Destroyed by G-34 Mercenary with Small Laser Last Messages --------------- 00369_ W-16 Scout destroyed. 00371_ R-06 Scavenger collects Signal Interpreter. 00374_ R-06 Scavenger collects Lgt. Ion Engine. 00375_ Acquired Sensor Array. 00376_ Acquired 16 matter. 00426_ S-10 Pest destroyed. 00430_ S-10 Pest IFF system glitched. 00435_ R-06 Scavenger collects Lgt. Assault Rifle. 00436_ Med. Laser destroyed. 00440_ EM Pulse Gun destroyed. 00452_ S-10 Pest IFF system glitched. 00452_ Ion Engine destroyed. 00471_ K-01 Serf collects debris. 00473_ K-01 Serf destroyed. 00476_ R-06 Scavenger collects Wheel. 00477_ R-06 Scavenger collects Lgt. Ion Engine. 00481_ R-06 Scavenger collects Med. Matter Pod. 00488_ Slammed into M-13 Machinist. 00501_ Lgt. Treads destroyed. 00536_ Acquired Sml. Laser. Map ----- +----------------------------------------------------+ | ????????????????????# """ #????? | | ????????????????????# """ #????? | | ????????????????????# #????? | | ###?????????????????#######+######????? | | #????????############## #???????? | | #????????# ! # #???????? | | #????????# # ##########?? | | #????????# # # #?? | | #????????# + + """ #?? | | #????????# # # """ #?? | | ##???????####+######### # """ #?? | | ############ ######### # #?? | | # """ #?? | | # """ #?? | | # """ #?? | | ###+######+########### + #?? | | #### # #??????##+########+##?? | | ???# " # #??????# ## #??? | | ???# T # #??????# """ ## #??? | | ???# " # #??????# R" ## #??? | | ???# # #??????# """ ## #??? | | ???# """ # #??????# + #??? | | ???# """ # #??????# g""" ## #??? | | ???# """ #####??????#[[ """ ## #??? | | ???# #??????????#[[ """ ## #??? | | ???##########??????????#[@ s ## #??? | | ???????????????????????########+## #??? | | ??????????????????????????????# #??? | | ??????????????????????????????# #??? | | ??????????????????????????????# ##?? | | ??????????????????????????????# #?? | | ??????????????????????????????# #?? | | ??????????????????????????????# #?? | | ??????????????????????????????# #?? | | ??????????????????????????????# #?? | | ??????????????????????????????# #?? | | ??????????????????????????????# #?? | | ??????????????????????????????# #####?? | | ??????????????????????????????# #?????? | | ??????????????????????????????#%#?????? | | ??????????????????????????????# #?????? | | ??????????????????????????????# #?????? | | ??????????????????????????????# ####### | | ??????????????????????????????# # # | | ??????????????????????????????# # T # | | ??????????????????????????????# # # | | ??????????????????????????????# # === # | | ??????????????????????????????# # === # | | ??????????????????????????????# + == # | | ??????################????????# # # | +----------------------------------------------------+ Best States ------------- Heat Dissipation 25 Energy Generation 10 Energy Capacity 250 Matter Stores 300 Matter Capacity 300 Sight Range 16 Terrain Scan Density 10 Evasion (%) 40 Recoil Reduction 2 Offensive Hacking 10 Item Schematics ----------------- None Robot Schematics ------------------ None Fabricated ------------ Nothing Alien Tech Used ----------------- None Achievements -------------- Everything Is Under Control Shopping List Challenges ------------ None Game ------ Seed SuperchargedLongswordLaser Manual? 0 Play Time 00:10:31 Cumulative 3.3 hours Start 2020.07.24 @ 00:54:22 End 2020.07.24 @ 01:00:37 Sessions 1 Manual Loads 0 Difficulty Rogue Special Mode None Game No. 7 Rogue 7 Adventurer 0 Explorer 0 Win Type - Total 0 Types 0/0/0/0/0/0/0 Lore% 0 Gallery% 8 Achievement% 7 Wizard Run 0 Options --------- ASCII 0 Keyboard 0 Movement Numpad Keybinds 0 Fullscreen 2 Font 18/Terminus Map View 76x50 Tactical HUD 1 Map Filters NONE Filters NONE Steam 1 RUN: 0724aa7e-31cb-4414-bb5c-7635b5d34de2